[Event "Nové Hrady - Rapid A"]
[Site "Nové Hrady, Czech Republic"]
[Date "2024.08.10"]
[Round "2.4"]
[White "Garabik, Marek"]
[Black "Rausch, Rudolf"]
[Result "1-0"]
[TimeControl "2x15min+5s"]
[WhiteFideId "23717742"]
[BlackFideId "1639455"]
[WhiteElo "1933"]
[BlackElo "1838"]

1. e4 {[%clk 00:15:09]} d6 {[%clk 00:15:03]} {[%emt 00:00:07]} 2. d4 {[%clk
00:15:11]} {[%emt 00:00:03]} g6 {[%clk 00:15:07]} 3. Nc3 {[%clk 00:15:13]}
{[%emt 00:00:05]} Bg7 {[%clk 00:15:10]} {[%emt 00:00:02]} 4. Nf3 {[%clk
00:15:13]} {[%emt 00:00:05]} Nf6 {[%clk 00:15:11]} {[%emt 00:00:04]} 5. Bg5
{[%clk 00:15:17]} O-O {[%clk 00:15:13]} {[%emt 00:00:05]} 6. h3 {[%clk
00:14:14]} {[%emt 00:01:07]} h6 {[%clk 00:15:11]} {[%emt 00:00:06]} 7. Bh4
{[%clk 00:14:09]} {[%emt 00:00:10]} Nbd7 {[%clk 00:14:38]} {[%emt 00:00:39]} 8.
Bc4 {[%clk 00:13:46]} {[%emt 00:00:28]} Nb6 {[%clk 00:14:24]} {[%emt 00:00:18]}
9. Bb3 {[%clk 00:13:48]} {[%emt 00:00:04]} Qe8 {[%clk 00:13:45]} {[%emt
00:00:44]} 10. O-O {[%clk 00:12:54]} {[%emt 00:00:59]} c5 {[%clk 00:13:37]}
{[%emt 00:00:14]} 11. e5 {[%clk 00:09:27]} {[%emt 00:03:32]} Nh7 {[%clk
00:11:06]} {[%emt 00:02:35]} 12. exd6 {[%clk 00:08:34]} {[%emt 00:00:58]} exd6
{[%clk 00:10:52]} {[%emt 00:00:18]} 13. Re1 {[%clk 00:08:37]} {[%emt 00:00:03]}
Qc6 {[%clk 00:10:02]} {[%emt 00:00:55]} 14. d5 {[%clk 00:06:36]} {[%emt
00:02:06]} Qc7 {[%clk 00:08:57]} {[%emt 00:01:09]} 15. Nb5 {[%clk 00:06:40]}
{[%emt 00:00:02]} Qd7 {[%clk 00:08:18]} {[%emt 00:00:43]} 16. c4 {[%clk
00:06:10]} {[%emt 00:00:35]} g5 {[%clk 00:08:12]} {[%emt 00:00:11]} 17. Bg3
{[%clk 00:06:11]} {[%emt 00:00:03]} Bxb2 {[%clk 00:08:00]} {[%emt 00:00:17]} 18.
Rb1 {[%clk 00:06:14]} {[%emt 00:00:02]} Bg7 {[%clk 00:06:55]} {[%emt 00:01:11]}
19. Bxd6 {[%clk 00:06:03]} {[%emt 00:00:16]} Rd8 {[%clk 00:06:29]} {[%emt
00:00:29]} 20. Be7 {[%clk 00:03:43]} {[%emt 00:02:27]} a6 {[%clk 00:05:21]}
{[%emt 00:01:13]} 21. Bxd8 {[%clk 00:03:46]} {[%emt 00:00:01]} axb5 {[%clk
00:05:23]} {[%emt 00:00:03]} 22. Bxb6 {[%clk 00:03:48]} {[%emt 00:00:02]} bxc4
{[%clk 00:04:01]} {[%emt 00:01:27]} 23. Bxc4 {[%clk 00:03:48]} {[%emt
00:00:06]} Nf8 {[%clk 00:03:43]} {[%emt 00:00:23]} 24. Bxc5 {[%clk 00:03:27]}
{[%emt 00:00:26]} Qc7 {[%clk 00:03:43]} {[%emt 00:00:04]} 25. Bxf8 {[%clk
00:03:29]} {[%emt 00:00:03]} Bxf8 {[%clk 00:03:42]} {[%emt 00:00:06]} 26. Bb3
{[%clk 00:03:32]} {[%emt 00:00:03]} Bf5 {[%clk 00:03:33]} {[%emt 00:00:15]} 27.
Rc1 {[%clk 00:03:33]} {[%emt 00:00:03]} Qd6 {[%clk 00:03:12]} {[%emt 00:00:24]}
28. Qd4 {[%clk 00:03:32]} {[%emt 00:00:08]} Bg7 {[%clk 00:02:50]} {[%emt
00:00:27]} 29. Qc5 {[%clk 00:03:32]} {[%emt 00:00:05]} Qf6 {[%clk 00:01:46]}
{[%emt 00:01:08]} 30. Qe7 {[%clk 00:03:05]} {[%emt 00:00:32]} Qb6 {[%clk
00:01:07]} {[%emt 00:00:43]} 31. d6 {[%clk 00:03:04]} {[%emt 00:00:07]} Bf8
{[%clk 00:01:00]} {[%emt 00:00:12]} 32. Qxf7+ {[%clk 00:03:07]} {[%emt
00:00:03]} 1-0

[Event "Nové Hrady - Rapid A"]
[Site "Nové Hrady, Czech Republic"]
[Date "2024.08.10"]
[Round "2.5"]
[White "Junek, Petr"]
[Black "Borecký, Andrej"]
[Result "0-1"]
[TimeControl "2x15min+5s"]
[WhiteFideId "23739282"]
[BlackFideId "23752670"]
[WhiteElo "1762"]
[BlackElo "1618"]

1. e4 {[%clk 00:15:08]} {[%emt 00:00:02]} c5 {[%clk 00:15:08]} {[%emt
00:00:02]} 2. Nf3 {[%clk 00:15:12]} Nc6 {[%clk 00:15:11]} {[%emt 00:00:03]} 3.
d4 {[%clk 00:15:15]} {[%emt 00:00:01]} cxd4 {[%clk 00:15:15]} {[%emt 00:00:01]}
4. Nxd4 {[%clk 00:15:19]} Nf6 {[%clk 00:15:19]} {[%emt 00:00:02]} 5. Nc3 {[%clk
00:15:23]} {[%emt 00:00:03]} e5 {[%clk 00:15:23]} 6. Ndb5 {[%clk 00:15:23]}
{[%emt 00:00:05]} d6 {[%clk 00:15:24]} {[%emt 00:00:04]} 7. Bg5 {[%clk
00:15:25]} {[%emt 00:00:03]} a6 {[%clk 00:15:27]} {[%emt 00:00:02]} 8. Na3
{[%clk 00:15:28]} {[%emt 00:00:01]} b5 {[%clk 00:15:31]} {[%emt 00:00:02]} 9.
Bxf6 {[%clk 00:15:00]} {[%emt 00:00:33]} gxf6 {[%clk 00:15:32]} {[%emt
00:00:03]} 10. Nd5 {[%clk 00:15:04]} {[%emt 00:00:01]} f5 {[%clk 00:15:31]}
{[%emt 00:00:06]} 11. Bd3 {[%clk 00:14:47]} {[%emt 00:00:23]} Be6 {[%clk
00:15:05]} {[%emt 00:00:31]} 12. c4 {[%clk 00:14:32]} {[%emt 00:00:20]} b4
{[%clk 00:04:47]} {[%emt 00:10:22]} 13. Nc2 {[%clk 00:14:36]} {[%emt 00:00:02]}
Qa5 {[%clk 00:04:25]} {[%emt 00:00:27]} 14. b3 {[%clk 00:14:26]} {[%emt
00:00:14]} Bg7 {[%clk 00:03:51]} {[%emt 00:00:40]} 15. O-O {[%clk 00:13:33]}
{[%emt 00:00:58]} Bxd5 {[%clk 00:02:49]} {[%emt 00:01:06]} 16. cxd5 {[%clk
00:13:29]} {[%emt 00:00:10]} Ne7 {[%clk 00:02:50]} {[%emt 00:00:02]} 17. Qd2
{[%clk 00:12:30]} {[%emt 00:01:05]} fxe4 {[%clk 00:02:02]} {[%emt 00:00:54]} 18.
Bxe4 {[%clk 00:12:32]} {[%emt 00:00:02]} f5 {[%clk 00:01:56]} {[%emt 00:00:11]}
19. Bxf5 {[%clk 00:11:38]} {[%emt 00:00:59]} Nxf5 {[%clk 00:01:50]} {[%emt
00:00:11]} 20. Qg5 {[%clk 00:11:42]} O-O {[%clk 00:01:24]} {[%emt 00:00:31]} 21.
Ne3 {[%clk 00:11:24]} {[%emt 00:00:23]} Nxe3 {[%clk 00:01:03]} {[%emt
00:00:27]} 22. Qxe3 {[%clk 00:11:27]} {[%emt 00:00:02]} Qxd5 {[%clk 00:00:55]}
{[%emt 00:00:12]} 23. Rad1 {[%clk 00:11:31]} {[%emt 00:00:02]} Qe6 {[%clk
00:00:58]} {[%emt 00:00:02]} 24. Rd3 {[%clk 00:11:26]} {[%emt 00:00:09]} Rad8
{[%clk 00:00:59]} {[%emt 00:00:04]} 25. Rfd1 {[%clk 00:11:30]} d5 {[%clk
00:00:55]} {[%emt 00:00:10]} 26. Qe2 {[%clk 00:11:12]} {[%emt 00:00:21]} e4
{[%clk 00:00:42]} {[%emt 00:00:20]} 27. Rg3 {[%clk 00:11:15]} {[%emt 00:00:02]}
d4 {[%clk 00:00:36]} {[%emt 00:00:11]} 28. Qh5 {[%clk 00:10:48]} {[%emt
00:00:31]} Rd5 {[%clk 00:00:28]} {[%emt 00:00:13]} 29. Qe2 {[%clk 00:10:43]}
{[%emt 00:00:10]} Kh8 {[%clk 00:00:28]} {[%emt 00:00:06]} 30. Rh3 {[%clk
00:10:25]} {[%emt 00:00:23]} h6 {[%clk 00:00:10]} {[%emt 00:00:22]} 31. Rhd3
{[%clk 00:09:56]} {[%emt 00:00:34]} Rfd8 {[%clk 00:00:07]} {[%emt 00:00:08]} 32.
R3d2 {[%clk 00:09:43]} {[%emt 00:00:19]} Rc5 {[%clk 00:00:08]} {[%emt
00:00:03]} 33. h3 {[%clk 00:09:33]} {[%emt 00:00:16]} d3 {[%clk 00:00:08]}
{[%emt 00:00:06]} 34. Qe3 {[%clk 00:09:25]} {[%emt 00:00:12]} Rcd5 {[%clk
00:00:07]} {[%emt 00:00:06]} 35. f3 {[%clk 00:09:12]} {[%emt 00:00:17]} Bd4
{[%clk 00:00:09]} {[%emt 00:00:04]} 36. fxe4 {[%clk 00:09:15]} {[%emt
00:00:02]} Bxe3+ {[%clk 00:00:12]} 0-1

[Event "Nové Hrady - Rapid A"]
[Site "Nové Hrady, Czech Republic"]
[Date "2024.08.10"]
[Round "2.6"]
[White "Černý, Zbyšek"]
[Black "Polanský, Matěj"]
[Result "1-0"]
[TimeControl "2x15min+5s"]
[WhiteFideId "23739380"]
[BlackFideId "23741872"]
[WhiteElo "1560"]
[BlackElo "1520"]

1. d4 {[%clk 00:15:07]} {[%emt 00:00:03]} d5 {[%clk 00:15:06]} {[%emt
00:00:05]} 2. c4 {[%clk 00:15:11]} e6 {[%clk 00:15:09]} {[%emt 00:00:02]} 3.
Nc3 {[%clk 00:15:14]} {[%emt 00:00:02]} Nf6 {[%clk 00:15:13]} 4. Nf3 {[%clk
00:15:15]} {[%emt 00:00:06]} c5 {[%clk 00:15:09]} {[%emt 00:00:09]} 5. e3
{[%clk 00:15:17]} {[%emt 00:00:02]} Nc6 {[%clk 00:15:01]} {[%emt 00:00:13]} 6.
Be2 {[%clk 00:15:02]} {[%emt 00:00:17]} b6 {[%clk 00:14:46]} {[%emt 00:00:23]}
7. O-O {[%clk 00:15:02]} {[%emt 00:00:06]} Be7 {[%clk 00:14:47]} {[%emt
00:00:04]} 8. b3 {[%clk 00:14:59]} {[%emt 00:00:07]} O-O {[%clk 00:14:49]}
{[%emt 00:00:03]} 9. Bb2 {[%clk 00:15:03]} Bb7 {[%clk 00:14:44]} {[%emt
00:00:12]} 10. a3 {[%clk 00:15:06]} {[%emt 00:00:02]} Rc8 {[%clk 00:14:35]}
{[%emt 00:00:13]} 11. Rc1 {[%clk 00:14:53]} {[%emt 00:00:18]} a6 {[%clk
00:14:16]} {[%emt 00:00:25]} 12. Bd3 {[%clk 00:14:35]} {[%emt 00:00:22]} Qc7
{[%clk 00:13:57]} {[%emt 00:00:24]} 13. Bb1 {[%clk 00:14:35]} {[%emt 00:00:05]}
h6 {[%clk 00:13:01]} {[%emt 00:01:01]} 14. cxd5 {[%clk 00:13:35]} {[%emt
00:01:05]} exd5 {[%clk 00:12:20]} {[%emt 00:00:47]} 15. dxc5 {[%clk 00:13:18]}
{[%emt 00:00:22]} Bxc5 {[%clk 00:11:52]} {[%emt 00:00:33]} 16. Nxd5 {[%clk
00:12:33]} {[%emt 00:00:49]} Nxd5 {[%clk 00:11:20]} {[%emt 00:00:37]} 17. Qxd5
{[%clk 00:12:36]} {[%emt 00:00:03]} Qe7 {[%clk 00:08:34]} {[%emt 00:02:51]} 18.
Qd3 {[%clk 00:11:53]} {[%emt 00:00:43]} g6 {[%clk 00:08:03]} {[%emt 00:00:41]}
19. Qc3 {[%clk 00:11:21]} {[%emt 00:00:37]} f5 {[%clk 00:07:18]} {[%emt
00:00:55]} 20. Qh8+ {[%clk 00:10:47]} {[%emt 00:00:33]} Kf7 {[%clk 00:07:21]}
{[%emt 00:00:02]} 21. Qg7+ {[%clk 00:09:56]} {[%emt 00:00:55]} Ke8 {[%clk
00:07:20]} {[%emt 00:00:07]} 22. Qxg6+ {[%clk 00:09:57]} {[%emt 00:00:04]} Kd8
{[%clk 00:06:47]} {[%emt 00:00:39]} 23. Rfd1+ {[%clk 00:09:32]} {[%emt
00:00:29]} Kc7 {[%clk 00:06:48]} {[%emt 00:00:04]} 24. Bxf5 {[%clk 00:08:59]}
{[%emt 00:00:38]} Rcd8 {[%clk 00:06:08]} {[%emt 00:00:45]} 25. b4 {[%clk
00:07:58]} {[%emt 00:01:06]} Bd6 {[%clk 00:05:51]} {[%emt 00:00:22]} 26. Nd4
{[%clk 00:06:22]} {[%emt 00:01:42]} Be5 {[%clk 00:03:26]} {[%emt 00:02:30]} 27.
Ne6+ {[%clk 00:04:28]} {[%emt 00:01:58]} Kb8 {[%clk 00:02:35]} {[%emt
00:00:53]} 28. Nxd8 {[%clk 00:03:48]} {[%emt 00:00:49]} Rxd8 {[%clk 00:00:36]}
{[%emt 00:02:02]} 29. Bxe5+ {[%clk 00:02:59]} {[%emt 00:00:55]} Nxe5 {[%clk
00:00:19]} {[%emt 00:00:20]} 30. Rxd8+ {[%clk 00:02:49]} {[%emt 00:00:17]} Qxd8
{[%clk 00:00:20]} {[%emt 00:00:05]} 31. Qe6 {[%clk 00:02:40]} {[%emt 00:00:12]}
Qg5 {[%clk 00:00:07]} {[%emt 00:00:19]} 32. Qxe5+ {[%clk 00:02:40]} {[%emt
00:00:05]} Ka7 {[%clk 00:00:12]} {[%emt 00:00:54]} 33. f3 {[%clk 00:03:26]}
{[%emt 00:00:16]} Qd8 {[%clk 00:00:11]} {[%emt 00:00:07]} 34. Qc7 {[%clk
00:03:05]} {[%emt 00:00:18]} Qa8 {[%clk 00:00:07]} {[%emt 00:00:16]} 35. Be4
{[%clk 00:02:49]} {[%emt 00:00:21]} a5 {[%clk 00:00:07]} {[%emt 00:00:06]} 36.
bxa5 {[%clk 00:02:36]} {[%emt 00:00:18]} bxa5 {[%clk 00:00:11]} 37. Qc5+ {[%clk
00:02:27]} {[%emt 00:00:13]} Kb8 {[%clk 00:00:10]} {[%emt 00:00:07]} 38. Qf8+
{[%clk 00:02:20]} {[%emt 00:00:12]} Ka7 {[%clk 00:00:13]} {[%emt 00:00:02]} 39.
Qxa8+ {[%clk 00:02:12]} {[%emt 00:00:12]} Kxa8 {[%clk 00:00:15]} {[%emt
00:00:04]} 40. Bxb7+ {[%clk 00:02:15]} {[%emt 00:00:02]} Kxb7 {[%clk 00:00:19]}
41. e4 {[%emt 00:00:03]} Kb6 42. Kf2 {[%clk 00:02:21]} {[%emt 00:00:01]} Kb5
{[%clk 00:00:27]} 43. Ke3 {[%clk 00:02:25]} Ka4 {[%clk 00:00:27]} {[%emt
00:00:06]} 44. Rc5 {[%clk 00:02:25]} {[%emt 00:00:06]} Kxa3 {[%clk 00:00:23]}
{[%emt 00:00:09]} 45. Rxa5+ {[%clk 00:02:29]} Kb4 {[%clk 00:00:27]} 46. Ra1
{[%clk 00:02:31]} {[%emt 00:00:06]} Kc5 {[%clk 00:00:29]} {[%emt 00:00:02]} 47.
Rd1 {[%clk 00:02:34]} {[%emt 00:00:02]} Kc4 {[%clk 00:00:33]} 48. Rc1+ {[%clk
00:02:33]} {[%emt 00:00:07]} Kb3 {[%clk 00:00:31]} {[%emt 00:00:08]} 49. Kd3
{[%clk 00:02:36]} {[%emt 00:00:01]} Kb2 {[%clk 00:00:31]} {[%emt 00:00:06]} 50.
Rc8 {[%clk 00:02:39]} {[%emt 00:00:02]} h5 {[%clk 00:00:34]} 51. Kd2 {[%clk
00:02:42]} {[%emt 00:00:03]} Kb3 {[%clk 00:00:38]} 52. g3 {[%clk 00:02:41]}
{[%emt 00:00:07]} Kb4 {[%clk 00:00:36]} {[%emt 00:00:07]} 53. Kd3 {[%clk
00:02:44]} {[%emt 00:00:02]} Kb5 {[%clk 00:00:40]} {[%emt 00:00:01]} 54. Kd4
{[%clk 00:02:48]} Kb6 {[%clk 00:00:45]} 55. Kd5 {[%clk 00:02:51]} {[%emt
00:00:04]} Kb7 {[%clk 00:00:49]} 56. Rc1 {[%clk 00:02:54]} {[%emt 00:00:03]}
Kb6 {[%clk 00:00:49]} {[%emt 00:00:04]} 57. Rc2 {[%clk 00:02:56]} {[%emt
00:00:03]} h4 {[%clk 00:00:52]} {[%emt 00:00:02]} 58. gxh4 {[%clk 00:02:56]}
{[%emt 00:00:05]} Kb5 {[%clk 00:00:56]} 59. Rb2+ {[%clk 00:03:00]} Ka4 {[%clk
00:01:00]} {[%emt 00:00:04]} 60. Kc4 {[%clk 00:03:04]} Ka5 {[%clk 00:01:04]}
{[%emt 00:00:02]} 61. Rb1 {[%clk 00:03:06]} {[%emt 00:00:03]} Ka4 {[%clk
00:01:08]} 62. Ra1# {[%clk 00:03:10]} 1-0

[Event "Nové Hrady - Rapid A"]
[Site "Nové Hrady, Czech Republic"]
[Date "2024.08.10"]
[Round "2.7"]
[White "Šrámek, Jan"]
[Black "Vondruška, Leoš"]
[Result "0-1"]
[TimeControl "2x15min+5s"]
[WhiteFideId "23743638"]
[BlackFideId "23730099"]
[WhiteElo "1555"]
[BlackElo "1506"]

1. d4 {[%clk 00:14:57]} {[%emt 00:00:13]} d5 {[%clk 00:15:02]} {[%emt
00:00:08]} 2. Nf3 {[%clk 00:14:55]} {[%emt 00:00:08]} Nc6 {[%clk 00:14:47]}
{[%emt 00:00:20]} 3. e3 {[%clk 00:14:50]} {[%emt 00:00:09]} Bf5 {[%clk
00:14:28]} {[%emt 00:00:24]} 4. c4 {[%clk 00:14:46]} {[%emt 00:00:10]} e6
{[%clk 00:14:16]} {[%emt 00:00:16]} 5. Nc3 {[%clk 00:14:33]} {[%emt 00:00:18]}
Nf6 {[%clk 00:13:56]} {[%emt 00:00:25]} 6. Be2 {[%clk 00:13:54]} {[%emt
00:00:43]} Be7 {[%clk 00:13:52]} {[%emt 00:00:10]} 7. O-O {[%clk 00:13:43]}
{[%emt 00:00:16]} O-O {[%clk 00:13:46]} {[%emt 00:00:11]} 8. h3 {[%clk
00:13:22]} {[%emt 00:00:26]} a6 {[%clk 00:13:31]} {[%emt 00:00:21]} 9. Ne5
{[%clk 00:12:26]} {[%emt 00:01:01]} Ne4 {[%clk 00:09:06]} {[%emt 00:04:30]} 10.
Nxe4 {[%clk 00:11:54]} {[%emt 00:00:37]} Bxe4 {[%clk 00:09:06]} {[%emt
00:00:04]} 11. cxd5 {[%clk 00:11:23]} {[%emt 00:00:36]} Nxe5 {[%clk 00:08:23]}
{[%emt 00:00:49]} 12. dxe5 {[%clk 00:11:20]} {[%emt 00:00:07]} Qxd5 {[%clk
00:08:07]} {[%emt 00:00:21]} 13. Qxd5 {[%clk 00:11:16]} {[%emt 00:00:09]} Bxd5
{[%clk 00:08:06]} {[%emt 00:00:06]} 14. Bd2 {[%clk 00:11:04]} {[%emt 00:00:17]}
Rfd8 {[%clk 00:07:43]} {[%emt 00:00:29]} 15. Rac1 {[%clk 00:10:51]} {[%emt
00:00:18]} Bc6 {[%clk 00:07:23]} {[%emt 00:00:25]} 16. Bc3 {[%clk 00:10:32]}
{[%emt 00:00:23]} Rd7 {[%clk 00:07:06]} {[%emt 00:00:22]} 17. f4 {[%clk
00:09:44]} {[%emt 00:00:54]} Bc5 {[%clk 00:06:43]} {[%emt 00:00:28]} 18. Kf2
{[%clk 00:09:00]} {[%emt 00:00:49]} Rad8 {[%clk 00:06:28]} {[%emt 00:00:19]} 19.
b4 {[%clk 00:08:53]} {[%emt 00:00:12]} Be7 {[%clk 00:05:59]} {[%emt 00:00:34]}
20. a3 {[%clk 00:08:41]} {[%emt 00:00:18]} g6 {[%clk 00:05:42]} {[%emt
00:00:21]} 21. Bd4 {[%clk 00:08:39]} {[%emt 00:00:07]} Rf8 {[%clk 00:05:24]}
{[%emt 00:00:23]} 22. Bxa6 {[%clk 00:08:28]} {[%emt 00:00:16]} Bd5 {[%clk
00:05:09]} {[%emt 00:00:20]} 23. Be2 {[%clk 00:08:12]} {[%emt 00:00:21]} c6
{[%clk 00:05:03]} {[%emt 00:00:12]} 24. g3 {[%clk 00:07:44]} {[%emt 00:00:32]}
Ra8 {[%clk 00:05:01]} {[%emt 00:00:07]} 25. Bb2 {[%clk 00:07:23]} {[%emt
00:00:26]} Rc7 {[%clk 00:04:43]} {[%emt 00:00:23]} 26. h4 {[%clk 00:07:17]}
{[%emt 00:00:12]} c5 {[%clk 00:04:27]} {[%emt 00:00:21]} 27. bxc5 {[%clk
00:07:07]} {[%emt 00:00:14]} Rxc5 {[%clk 00:04:04]} {[%emt 00:00:28]} 28. Rxc5
{[%clk 00:06:17]} {[%emt 00:00:56]} Bxc5 {[%clk 00:04:01]} {[%emt 00:00:07]} 29.
Ra1 {[%clk 00:06:04]} {[%emt 00:00:18]} Bc6 {[%clk 00:03:50]} {[%emt 00:00:17]}
30. h5 {[%clk 00:05:54]} {[%emt 00:00:15]} Rd8 {[%clk 00:03:21]} {[%emt
00:00:34]} 31. hxg6 {[%clk 00:05:49]} {[%emt 00:00:08]} hxg6 {[%clk 00:03:24]}
{[%emt 00:00:03]} 32. a4 {[%clk 00:05:42]} {[%emt 00:00:13]} Rd2 {[%clk
00:03:22]} {[%emt 00:00:07]} 33. Bd4 {[%clk 00:05:03]} {[%emt 00:00:43]} Bxd4
{[%clk 00:03:14]} {[%emt 00:00:13]} 34. exd4 {[%clk 00:05:05]} {[%emt
00:00:03]} Rxd4 {[%clk 00:03:17]} {[%emt 00:00:02]} 35. a5 {[%clk 00:05:03]}
{[%emt 00:00:08]} Rd2 {[%clk 00:03:12]} {[%emt 00:00:09]} 36. Ke3 {[%clk
00:04:55]} {[%emt 00:00:14]} Rb2 {[%clk 00:03:04]} {[%emt 00:00:13]} 37. a6
{[%clk 00:04:40]} {[%emt 00:00:20]} bxa6 {[%clk 00:02:59]} {[%emt 00:00:08]} 38.
Rxa6 {[%clk 00:04:36]} {[%emt 00:00:11]} Rb3+ {[%clk 00:02:46]} {[%emt
00:00:18]} 39. Kf2 {[%clk 00:04:33]} {[%emt 00:00:07]} Bd5 {[%clk 00:02:26]}
{[%emt 00:00:25]} 40. Rd6 {[%clk 00:04:26]} {[%emt 00:00:12]} Rb2 {[%clk
00:02:25]} {[%emt 00:00:06]} 41. Rd8+ {[%clk 00:04:08]} {[%emt 00:00:23]} Kg7
{[%clk 00:02:26]} {[%emt 00:00:04]} 42. g4 {[%clk 00:03:47]} {[%emt 00:00:26]}
Bc4 {[%clk 00:02:24]} {[%emt 00:00:07]} 43. f5 {[%clk 00:03:20]} {[%emt
00:00:33]} Rxe2+ {[%clk 00:02:24]} {[%emt 00:00:04]} 44. Kg3 {[%clk 00:03:19]}
{[%emt 00:00:06]} Rxe5 {[%clk 00:02:09]} {[%emt 00:00:21]} 45. fxe6 {[%clk
00:03:10]} {[%emt 00:00:14]} Bxe6 {[%clk 00:02:02]} {[%emt 00:00:11]} 46. Rd4
{[%clk 00:03:09]} {[%emt 00:00:06]} Ra5 {[%clk 00:02:03]} {[%emt 00:00:05]} 47.
Kf4 {[%clk 00:02:59]} {[%emt 00:00:14]} g5+ {[%clk 00:01:57]} {[%emt 00:00:11]}
48. Ke3 {[%clk 00:02:47]} {[%emt 00:00:17]} Ra3+ {[%clk 00:01:54]} {[%emt
00:00:08]} 49. Kf2 {[%clk 00:02:41]} {[%emt 00:00:12]} Ra2+ {[%clk 00:01:54]}
{[%emt 00:00:05]} 50. Kg3 {[%clk 00:02:44]} Kg6 {[%clk 00:01:47]} {[%emt
00:00:14]} 51. Rd6 {[%clk 00:02:45]} {[%emt 00:00:03]} Kf6 {[%clk 00:01:47]}
{[%emt 00:00:05]} 52. Rb6 {[%clk 00:02:43]} {[%emt 00:00:08]} Ra3+ {[%clk
00:01:47]} {[%emt 00:00:05]} 53. Kf2 {[%clk 00:02:41]} {[%emt 00:00:06]} Kg7
{[%clk 00:01:47]} {[%emt 00:00:05]} 54. Rb4 {[%clk 00:02:43]} {[%emt 00:00:04]}
Ra7 {[%clk 00:01:41]} {[%emt 00:00:10]} 55. Ke3 {[%clk 00:02:36]} {[%emt
00:00:12]} Rc7 {[%clk 00:01:36]} {[%emt 00:00:10]} 56. Kd3 {[%clk 00:02:11]}
{[%emt 00:00:31]} Ra7 {[%clk 00:01:38]} {[%emt 00:00:03]} 57. Rd4 {[%clk
00:02:06]} {[%emt 00:00:10]} Ra3+ {[%clk 00:01:39]} {[%emt 00:00:03]} 58. Kc2
{[%clk 00:02:03]} {[%emt 00:00:09]} Rg3 {[%clk 00:01:39]} {[%emt 00:00:04]} 59.
Kd2 {[%clk 00:02:02]} {[%emt 00:00:07]} Rxg4 {[%clk 00:01:36]} {[%emt
00:00:07]} 60. Rxg4 {[%clk 00:02:05]} Bxg4 {[%clk 00:01:39]} 61. Ke3 {[%clk
00:02:09]} f6 {[%clk 00:01:40]} {[%emt 00:00:10]} 62. Kf2 {[%clk 00:02:10]}
{[%emt 00:00:04]} Be6 {[%clk 00:01:41]} {[%emt 00:00:04]} 0-1

[Event "Nové Hrady - Rapid A"]
[Site "Nové Hrady, Czech Republic"]
[Date "2024.08.10"]
[Round "2.8"]
[White "Valiyev, Adil"]
[Black "Schneider, Wolfgang"]
[Result "1-0"]
[TimeControl "2x15min+5s"]
[WhiteFideId "23752246"]
[BlackFideId "1639471"]
[WhiteElo "1469"]
[BlackElo "1542"]

1. e4 {[%clk 00:15:07]} {[%emt 00:00:03]} e5 {[%clk 00:15:07]} {[%emt
00:00:04]} 2. Nf3 {[%clk 00:15:10]} {[%emt 00:00:02]} d6 {[%clk 00:15:09]}
{[%emt 00:00:03]} 3. d4 {[%clk 00:15:07]} {[%emt 00:00:08]} Be7 {[%clk
00:15:00]} {[%emt 00:00:13]} 4. dxe5 {[%clk 00:15:10]} {[%emt 00:00:03]} dxe5
{[%clk 00:15:01]} {[%emt 00:00:04]} 5. Qxd8+ {[%clk 00:15:10]} {[%emt
00:00:04]} Bxd8 {[%clk 00:15:03]} {[%emt 00:00:04]} 6. Nxe5 {[%clk 00:15:11]}
{[%emt 00:00:04]} a6 {[%clk 00:14:53]} {[%emt 00:00:15]} 7. Bc4 {[%clk
00:15:11]} {[%emt 00:00:04]} Be6 {[%clk 00:14:39]} {[%emt 00:00:19]} 8. Bxe6
{[%clk 00:15:11]} {[%emt 00:00:05]} fxe6 {[%clk 00:14:41]} {[%emt 00:00:03]} 9.
O-O {[%clk 00:15:13]} {[%emt 00:00:04]} Nf6 {[%clk 00:14:40]} {[%emt 00:00:05]}
10. Nc3 {[%clk 00:15:00]} {[%emt 00:00:18]} O-O {[%clk 00:14:35]} {[%emt
00:00:10]} 11. Nf3 {[%clk 00:14:41]} {[%emt 00:00:24]} h6 {[%clk 00:14:29]}
{[%emt 00:00:11]} 12. e5 {[%clk 00:14:38]} {[%emt 00:00:08]} Nfd7 {[%clk
00:14:19]} {[%emt 00:00:14]} 13. Rd1 {[%clk 00:14:29]} {[%emt 00:00:15]} Nc6
{[%clk 00:14:11]} {[%emt 00:00:13]} 14. Rxd7 {[%clk 00:14:23]} {[%emt
00:00:12]} b5 {[%clk 00:13:28]} {[%emt 00:00:48]} 15. Be3 {[%clk 00:13:43]}
{[%emt 00:00:42]} Rf5 {[%clk 00:13:07]} {[%emt 00:00:25]} 16. Rad1 {[%clk
00:13:35]} {[%emt 00:00:15]} b4 {[%clk 00:08:47]} {[%emt 00:00:48]} 17. Ne2
{[%clk 00:13:24]} {[%emt 00:03:53]} a5 {[%clk 00:08:12]} {[%emt 00:00:43]} 18.
Ned4 {[%clk 00:12:34]} {[%emt 00:00:55]} Rh5 {[%clk 00:07:04]} {[%emt
00:01:11]} 19. Nxc6 {[%clk 00:12:31]} {[%emt 00:00:08]} Bg5 {[%clk 00:06:37]}
{[%emt 00:00:31]} 20. Bxg5 {[%clk 00:12:08]} {[%emt 00:00:28]} hxg5 {[%clk
00:06:32]} {[%emt 00:00:10]} 21. h3 {[%clk 00:12:06]} {[%emt 00:00:08]} g6
{[%clk 00:05:28]} {[%emt 00:01:09]} 22. Rxc7 {[%clk 00:12:02]} {[%emt
00:00:09]} Ra6 {[%clk 00:04:38]} {[%emt 00:00:56]} 23. Rd8# {[%emt 00:00:06]}
Kg7 {[%emt 00:00:14]} 1-0